fUST/lending_fUST_20250719
["ID","MTS","AMOUNT","RATE_DAILY","PERIOD"]
[373099174,1752859848991,-4107.13,0.00018375,2]
[373099176,1752859849001,-460.0,0.00018375,2]
[373099178,1752859849010,-1227.63,0.00018375,2]
[373099180,1752859849020,-460.0,0.00018375,2]
[373099182,1752859849030,-732.87,0.00018375,2]
[373099184,1752859849039,-2655.99,0.00018376,2]
[373099185,1752859849048,-775.59,0.00018376,2]
[373099188,1752859849059,-409.11302142,0.00018547,2]
[373099190,1752859849069,-1626.16,0.00018547,2]
[373099191,1752859849078,-519.29,0.00018547,2]
[373099193,1752859849088,-2793.69,0.00018547,2]
[373099196,1752859849098,-460.0,0.00018547,2]
[373099198,1752859849108,-1377.11,0.00018547,2]
[373099200,1752859849118,-460.0,0.00018547,2]
[373099202,1752859849128,-925.96,0.00018547,2]
[373099204,1752859849137,-460.0,0.00018547,2]
[373099206,1752859849147,-460.0,0.00018547,2]
[373099208,1752859849157,-1676.85,0.00018547,2]
[373099210,1752859849166,-1836.73839674,0.00018555,2]
[373099212,1752859849176,-215.0738,0.00018593,2]
[373099214,1752859849185,-260.0,0.00018643,2]
[373099216,1752859849194,-460.0,0.00018645,2]
[373099218,1752859849204,-460.0,0.00018645,2]
[373099220,1752859849213,-675.1,0.00018645,2]
[373099222,1752859849222,-460.0,0.00018645,2]
[373099224,1752859849232,-228.89911471,0.00018645,2]
[373099226,1752859849241,-463.46,0.00018646,2]
[373099228,1752859849250,-460.0,0.00018646,2]
[373099230,1752859849261,-460.0,0.00018646,2]
[373099232,1752859849272,-460.0,0.00018646,2]
[373099233,1752859849281,-667.05,0.00018646,2]
[373099235,1752859849290,-1015.39,0.00018646,2]
[373099237,1752859849300,-460.0,0.00018646,2]
[373099239,1752859849309,-460.0,0.00018647,2]
[373099242,1752859849320,-460.0,0.00018647,2]
[373099243,1752859849329,-601.8,0.00018647,2]
[373099245,1752859849339,-460.0,0.00018647,2]
[373099247,1752859849348,-487.77,0.00018647,2]
[373099249,1752859849357,-460.0,0.00018647,2]
[373099252,1752859849367,-493.81,0.00018647,2]
[373099253,1752859849376,-524.61,0.00018647,2]
[373099256,1752859849386,-460.0,0.00018647,2]
[373099258,1752859849395,-460.0,0.00018647,2]
[373099260,1752859849404,-460.0,0.00018647,2]
[373099262,1752859849413,-704.19,0.00018647,2]
[373099264,1752859849422,-460.0,0.00018647,2]
[373099266,1752859849432,-460.0,0.00018647,2]
[373099268,1752859849441,-460.0,0.00018647,2]
[373099270,1752859849451,-460.0,0.00018647,2]
[373099272,1752859849460,-157.39,0.00018647,2]
[373099274,1752859849469,-495.9390788,0.00018647,2]
[373099275,1752859849478,-764.37,0.00018647,2]
[373099277,1752859849488,-173.99,0.00018647,2]
[373099279,1752859849498,-411.67988293,0.00018648,2]
[373099281,1752859849507,-460.0,0.00018649,2]
[373099283,1752859849515,-460.0,0.00018649,2]
[373099285,1752859849527,-460.0,0.00018649,2]
[373099287,1752859849537,-460.0,0.00018649,2]
[373099289,1752859849546,-460.0,0.00018649,2]
[373099292,1752859849556,-460.0,0.00018649,2]
[373099294,1752859849566,-460.0,0.00018649,2]
[373099296,1752859849575,-460.0,0.00018649,2]
[373099298,1752859849584,-1720.96,0.00018649,2]
[373099300,1752859849593,-460.0,0.00018649,2]
[373099302,1752859849602,-1395.97,0.00018649,2]
[373099304,1752859849611,-599.52,0.00018649,2]
[373099306,1752859849620,-4107.13,0.00018649,2]
[373099308,1752859849629,-460.0,0.00018649,2]
[373099309,1752859849638,-1227.63,0.00018649,2]
[373099311,1752859849647,-460.0,0.00018649,2]
[373099313,1752859849656,-732.87,0.00018649,2]
[373099315,1752859849665,-2655.99,0.0001865,2]
[373099317,1752859849675,-775.59,0.0001865,2]
[373099319,1752859849684,-1626.16,0.00018821,2]
[373099322,1752859849694,-519.29,0.00018821,2]
[373099324,1752859849703,-2793.69,0.00018821,2]
[373099325,1752859849712,-460.0,0.00018821,2]
[373099328,1752859849722,-1377.11,0.00018821,2]
[373099330,1752859849731,-460.0,0.00018821,2]
[373099332,1752859849741,-925.96,0.00018821,2]
[373099334,1752859849750,-460.0,0.00018821,2]
[373099335,1752859849760,-460.0,0.00018821,2]
[373099338,1752859849773,-1676.85,0.00018821,2]
[373099340,1752859849781,-1836.73839674,0.00018831,2]
[373099342,1752859849791,-2280.18641897,0.000189,2]
[373099344,1752859849800,-460.0,0.00018919,2]
[373099346,1752859849811,-435.37215349,0.00018919,2]
[373099348,1752859849820,-675.1,0.00018919,2]
[373099350,1752859849829,-460.0,0.00018919,2]
[373099352,1752859849839,-463.46,0.0001892,2]
[373099354,1752859849848,-460.0,0.0001892,2]
[373099356,1752859849858,-460.0,0.0001892,2]
[373099358,1752859849867,-217.98,0.0001892,2]
[373099360,1752859849877,-667.05,0.0001892,2]
[373099362,1752859849886,-1015.39,0.0001892,2]
[373099364,1752859849895,-460.0,0.0001892,2]
[373099366,1752859849905,-480.19381675,0.00018921,2]
[373099368,1752859849915,-460.0,0.00018921,2]
[373099370,1752859849924,-415.49,0.00018921,2]
[373099372,1752859849934,-487.77,0.00018921,2]
[373099374,1752859849943,-460.0,0.00018921,2]
[373099376,1752859849953,-493.81,0.00018921,2]
[373099378,1752859849962,-524.61,0.00018921,2]
[373099380,1752859849972,-313.3160135,0.00018921,2]
[373099382,1752859849981,-460.0,0.00018921,2]
[373099384,1752859849990,-460.0,0.00018921,2]
[373099386,1752859849999,-704.19,0.00018921,2]
[373099388,1752859850009,-460.0,0.00018921,2]
[373099390,1752859850018,-460.0,0.00018921,2]
[373099392,1752859850027,-460.0,0.00018921,2]
[373099394,1752859850036,-460.0,0.00018921,2]
[373099395,1752859850046,-764.37,0.00018921,2]
[373099398,1752859850055,-460.0,0.00018923,2]
[373099400,1752859850065,-460.0,0.00018923,2]
[373099402,1752859850074,-460.0,0.00018923,2]
[373099403,1752859850083,-460.0,0.00018923,2]
[373099405,1752859850092,-460.0,0.00018923,2]
[373099407,1752859850102,-460.0,0.00018923,2]
[373099409,1752859850111,-460.0,0.00018923,2]
[373099411,1752859850120,-460.0,0.00018923,2]
[373099413,1752859850130,-1720.96,0.00018923,2]
[373099415,1752859850139,-460.0,0.00018923,2]
[373099417,1752859850148,-1395.97,0.00018923,2]
[373099419,1752859850158,-599.52,0.00018923,2]
[373099422,1752859850168,-4107.13,0.00018923,2]
[373099424,1752859850177,-460.0,0.00018923,2]
[373099426,1752859850186,-1227.63,0.00018923,2]
[373099428,1752859850195,-460.0,0.00018923,2]
[373099430,1752859850204,-732.87,0.00018923,2]
[373099432,1752859850213,-2655.99,0.00018924,2]
[373099434,1752859850222,-775.59,0.00018924,2]
[373099436,1752859850231,-22534.11843379,0.00019,2]
[373099437,1752859850240,-500.0,0.00019064,2]
[373099450,1752859850344,-1626.16,0.00019095,2]
[373099452,1752859850354,-519.29,0.00019095,2]
[373099454,1752859850363,-2793.69,0.00019095,2]
[373099456,1752859850372,-460.0,0.00019095,2]
[373099458,1752859850381,-1377.11,0.00019095,2]
[373099460,1752859850390,-460.0,0.00019095,2]
[373099462,1752859850400,-925.96,0.00019095,2]
[373099464,1752859850409,-277.95,0.00019095,2]
[373099466,1752859850418,-460.0,0.00019095,2]
[373099468,1752859850427,-1676.85,0.00019095,2]
[373099470,1752859850437,-1836.73839674,0.00019107,2]
[373099472,1752859850445,-291.712168,0.00019178,2]
[373099474,1752859850455,-666.0,0.00019178,2]
[373099476,1752859850464,-360.0,0.00019191,2]
[373099478,1752859850473,-460.0,0.00019193,2]
[373099480,1752859850482,-675.1,0.00019193,2]
[373099482,1752859850491,-460.0,0.00019193,2]
[373099484,1752859850500,-463.46,0.00019194,2]
[373099486,1752859850510,-460.0,0.00019194,2]
[373099488,1752859850520,-460.0,0.00019194,2]
[373099490,1752859850529,-667.05,0.00019194,2]
[373099492,1752859850538,-1015.39,0.00019194,2]
[373099494,1752859850547,-460.0,0.00019195,2]
[373099496,1752859850557,-487.77,0.00019195,2]
[373099498,1752859850566,-488.66,0.00019195,2]
[373099500,1752859850575,-493.81,0.00019195,2]
[373099502,1752859850584,-524.61,0.00019195,2]
[373099504,1752859850594,-460.0,0.00019195,2]
[373099506,1752859850603,-460.0,0.00019195,2]
[373099508,1752859850612,-704.19,0.00019195,2]
[373099510,1752859850622,-460.0,0.00019195,2]
[373099512,1752859850631,-460.0,0.00019195,2]
[373099514,1752859850641,-460.0,0.00019195,2]
[373099516,1752859850650,-460.0,0.00019195,2]
[373099518,1752859850659,-764.37,0.00019195,2]
[373099520,1752859850669,-460.0,0.00019197,2]
[373099522,1752859850678,-460.0,0.00019197,2]
[373099524,1752859850687,-460.0,0.00019197,2]
[373099526,1752859850697,-460.0,0.00019197,2]
[373099528,1752859850706,-460.0,0.00019197,2]
[373099530,1752859850715,-366.57,0.00019197,2]
[373099532,1752859850724,-460.0,0.00019197,2]
[373099534,1752859850734,-460.0,0.00019197,2]
[373099536,1752859850743,-1720.96,0.00019197,2]
[373099538,1752859850752,-460.0,0.00019197,2]
[373099540,1752859850765,-1395.97,0.00019197,2]
[373099542,1752859850776,-599.52,0.00019197,2]
[373099544,1752859850785,-4107.13,0.00019197,2]
[373099546,1752859850795,-460.0,0.00019197,2]
[373099548,1752859850806,-1227.63,0.00019197,2]
[373099550,1752859850815,-460.0,0.00019197,2]
[373099552,1752859850824,-2655.99,0.00019198,2]
[373099554,1752859850834,-775.59,0.00019198,2]
[373099556,1752859850844,-288.20497452,0.00019299,2]
[373099557,1752859850854,-1626.16,0.00019369,2]
[373099558,1752859850863,-519.29,0.00019369,2]
[373099559,1752859850872,-2793.69,0.00019369,2]
[373099560,1752859850880,-309.32935151,0.00019369,2]
[373099561,1752859850889,-1377.11,0.00019369,2]
[373099562,1752859850899,-925.96,0.00019369,2]
[373099563,1752859850908,-460.0,0.00019369,2]
[373099564,1752859850917,-1676.85,0.00019369,2]
[373099565,1752859850927,-1836.73839674,0.00019383,2]
[373099566,1752859850936,-460.0,0.00019467,2]
[373099567,1752859850946,-675.1,0.00019467,2]
[373099568,1752859850956,-460.0,0.00019467,2]
[373099569,1752859850965,-463.46,0.00019468,2]
[373099571,1752859850974,-460.0,0.00019468,2]
[373099573,1752859850983,-503.74129179,0.00019468,2]
[373099575,1752859850992,-667.05,0.00019468,2]
[373099577,1752859851002,-1015.39,0.00019468,2]
[373099579,1752859851012,-460.0,0.00019469,2]
[373099581,1752859851023,-487.77,0.00019469,2]
[373099583,1752859851032,-493.81,0.00019469,2]
[373099585,1752859851042,-524.61,0.00019469,2]
[373099587,1752859851051,-460.0,0.00019469,2]
[373099589,1752859851060,-460.0,0.00019469,2]
[373099591,1752859851070,-704.19,0.00019469,2]
[373099593,1752859851079,-460.0,0.00019469,2]
[373099595,1752859851089,-460.0,0.00019469,2]
[373099597,1752859851098,-460.0,0.00019469,2]
[373099599,1752859851108,-460.0,0.00019469,2]
[373099601,1752859851118,-764.37,0.00019469,2]
[373099603,1752859851127,-460.0,0.00019471,2]
[373099605,1752859851136,-460.0,0.00019471,2]
[373099607,1752859851146,-460.0,0.00019471,2]
[373099609,1752859851155,-241.75,0.00019471,2]
[373099611,1752859851164,-583.45,0.00019471,2]
[373099613,1752859851175,-460.0,0.00019471,2]
[373099615,1752859851185,-460.0,0.00019471,2]
[373099617,1752859851194,-1720.96,0.00019471,2]
[373099619,1752859851203,-460.0,0.00019471,2]
[373099621,1752859851213,-1395.97,0.00019471,2]
[373099623,1752859851222,-599.52,0.00019471,2]
[373099624,1752859851231,-4107.13,0.00019471,2]
[373099626,1752859851241,-460.0,0.00019471,2]
[373099629,1752859851250,-1227.63,0.00019471,2]
[373099631,1752859851260,-460.0,0.00019471,2]
[373099633,1752859851271,-2655.99,0.00019472,2]
[373099635,1752859851280,-775.59,0.00019472,2]
[373099637,1752859851289,-500.0,0.00019492,2]
[373099639,1752859851299,-511.70238936,0.00019509,2]
[373099641,1752859851308,-500.0,0.0001952,2]
[373099643,1752859851318,-1000.0,0.00019612,2]
[373099645,1752859851327,-1626.16,0.00019643,2]
[373099647,1752859851336,-519.29,0.00019643,2]
[373099648,1752859851346,-2793.69,0.00019643,2]
[373099650,1752859851355,-1377.11,0.00019643,2]
[373099652,1752859851365,-925.96,0.00019643,2]
[373099654,1752859851374,-460.0,0.00019643,2]
[373099656,1752859851384,-1676.85,0.00019643,2]
[373099658,1752859851393,-1836.73839674,0.00019659,2]
[373099660,1752859851402,-500.0,0.00019671,2]
[373099662,1752859851412,-501.46377135,0.00019671,2]
[373099664,1752859851421,-503.93358597,0.00019671,2]
[373099666,1752859851431,-502.99859168,0.000197,2]
[373099668,1752859851440,-460.0,0.00019739,2]
[373099670,1752859851450,-460.0,0.00019741,2]
[373099672,1752859851459,-675.1,0.00019741,2]
[373099674,1752859851469,-460.0,0.00019741,2]
[373099676,1752859851479,-463.46,0.00019742,2]
[373099678,1752859851488,-460.0,0.00019742,2]
[373099680,1752859851498,-667.05,0.00019742,2]
[373099682,1752859851507,-1015.39,0.00019742,2]
[373099684,1752859851517,-460.0,0.00019743,2]
[373099686,1752859851528,-487.77,0.00019743,2]
[373099688,1752859851538,-493.81,0.00019743,2]
[373099690,1752859851547,-524.61,0.00019743,2]
[373099692,1752859851556,-460.0,0.00019743,2]
[373099694,1752859851566,-450.6,0.00019743,2]
[373099696,1752859851575,-704.19,0.00019743,2]
[373099698,1752859851584,-460.0,0.00019743,2]
[373099700,1752859851594,-460.0,0.00019743,2]
[373099702,1752859851603,-460.0,0.00019743,2]
[373099704,1752859851613,-460.0,0.00019743,2]
[373099706,1752859851622,-764.37,0.00019743,2]
[373099708,1752859851631,-460.0,0.00019745,2]
[373099710,1752859851640,-460.0,0.00019745,2]
[373099712,1752859851649,-452.56269438,0.00019745,2]
[373099714,1752859851659,-460.0,0.00019745,2]
[373099716,1752859851668,-1720.96,0.00019745,2]
[373099718,1752859851677,-273.98,0.00019745,2]
[373099720,1752859851686,-1395.97,0.00019745,2]
[373099722,1752859851696,-599.52,0.00019745,2]
[373099724,1752859851706,-4107.13,0.00019745,2]
[373099726,1752859851715,-460.0,0.00019745,2]
[373099728,1752859851725,-1227.63,0.00019745,2]
[373099730,1752859851734,-460.0,0.00019745,2]
[373099732,1752859851743,-2655.99,0.00019746,2]
[373099734,1752859851753,-775.59,0.00019746,2]
[373099736,1752859851764,-1626.16,0.00019917,2]
[373099738,1752859851775,-519.29,0.00019917,2]
[373099740,1752859851784,-2793.69,0.00019917,2]
[373099742,1752859851793,-1377.11,0.00019917,2]
[373099744,1752859851803,-925.96,0.00019917,2]
[373099746,1752859851812,-460.0,0.00019917,2]
[373099748,1752859851822,-1676.85,0.00019917,2]
[373099750,1752859851832,-979.0,0.00019933,2]
[373099752,1752859851842,-1836.73839674,0.00019934,2]
[373099753,1752859851852,-223.0315306,0.00019962,2]
[373099755,1752859851861,-5779.99835419,0.0002,2]
[373099758,1752859851871,-150.58450334,0.0002,7]
[373099760,1752859851881,-460.0,0.00020015,2]
[373099762,1752859851890,-675.1,0.00020015,2]
[373099764,1752859851900,-460.0,0.00020015,2]
[373099766,1752859851910,-463.46,0.00020016,2]
[373099768,1752859851919,-280.03530916,0.00020016,2]
[373099770,1752859851929,-667.05,0.00020016,2]
[373099772,1752859851938,-1015.39,0.00020016,2]
[373099774,1752859851947,-460.0,0.00020017,2]
[373099776,1752859851956,-487.77,0.00020017,2]
[373099777,1752859851966,-493.81,0.00020017,2]
[373099779,1752859851975,-524.61,0.00020017,2]
[373099781,1752859851984,-441.38121459,0.00020017,2]
[373099783,1752859851993,-704.19,0.00020017,2]
[373099785,1752859852003,-460.0,0.00020017,2]
[373099787,1752859852012,-460.0,0.00020017,2]
[373099789,1752859852022,-460.0,0.00020017,2]
[373099791,1752859852031,-504.97,0.00020017,2]
[373099793,1752859852041,-764.37,0.00020017,2]
[373099795,1752859852051,-460.0,0.00020019,2]
[373099797,1752859852060,-460.0,0.00020019,2]
[373099799,1752859852070,-151.0,0.00020019,2]
[373099801,1752859852079,-151.0,0.00020019,2]
[373099803,1752859852089,-460.0,0.00020019,2]
[373099805,1752859852098,-151.0,0.00020019,2]
[373099807,1752859852107,-1720.96,0.00020019,2]
[373099809,1752859852117,-1395.97,0.00020019,2]
[373099811,1752859852127,-151.0,0.00020019,2]
[373099813,1752859852137,-151.0,0.00020019,2]
[373099815,1752859852146,-599.52,0.00020019,2]
[373099817,1752859852155,-151.0,0.00020019,2]
[373099819,1752859852165,-151.0,0.00020019,2]
[373099821,1752859852174,-4107.13,0.00020019,2]
[373099823,1752859852183,-460.0,0.00020019,2]
[373099825,1752859852192,-1227.63,0.00020019,2]
[373099827,1752859852203,-460.0,0.00020019,2]
[373099829,1752859852212,-2655.99,0.0002002,2]
[373099831,1752859852222,-775.59,0.0002002,2]
[373099833,1752859852231,-979.0,0.00020064,2]
[373099835,1752859852240,-979.0,0.00020113,2]
[373099837,1752859852249,-979.0,0.00020143,2]
[373099839,1752859852259,-488.33549,0.00020187,2]
[373099841,1752859852268,-1626.16,0.00020191,2]
[373099843,1752859852279,-519.29,0.00020191,2]
[373099845,1752859852287,-2793.69,0.00020191,2]
[373099847,1752859852298,-1377.11,0.00020191,2]
[373099849,1752859852307,-925.96,0.00020191,2]
[373099851,1752859852317,-460.0,0.00020191,2]
[373099853,1752859852326,-1676.85,0.00020191,2]
[373099855,1752859852335,-1836.73839674,0.0002021,2]
[373099857,1752859852344,-979.0,0.00020237,2]
[373099859,1752859852353,-979.0,0.00020283,2]
[373099861,1752859852362,-560.0,0.00020287,2]
[373099863,1752859852371,-185.30992788,0.00020289,2]
[373099865,1752859852381,-675.1,0.00020289,2]
[373099867,1752859852390,-460.0,0.00020289,2]
[373099869,1752859852399,-463.46,0.0002029,2]
[373099871,1752859852408,-667.05,0.0002029,2]
[373099873,1752859852417,-1015.39,0.0002029,2]
[373099875,1752859852426,-460.0,0.00020291,2]
[373099877,1752859852434,-487.77,0.00020291,2]
[373099879,1752859852443,-493.81,0.00020291,2]
[373099891,1752859852548,-524.61,0.00020291,2]
[373099893,1752859852558,-704.19,0.00020291,2]
[373099895,1752859852568,-460.0,0.00020291,2]
[373099897,1752859852579,-460.0,0.00020291,2]
[373099899,1752859852590,-460.0,0.00020291,2]
[373099901,1752859852599,-764.37,0.00020291,2]
[373099903,1752859852609,-460.0,0.00020293,2]
[373099905,1752859852618,-163.445326,0.00020293,2]
[373099907,1752859852627,-275.55,0.00020293,2]
[373099909,1752859852637,-151.0,0.00020293,2]
[373099911,1752859852646,-151.0,0.00020293,2]
[373099913,1752859852655,-441.037214,0.00020293,2]
[373099915,1752859852665,-441.037214,0.00020293,2]
[373099917,1752859852674,-460.0,0.00020293,2]
[373099919,1752859852684,-1720.96,0.00020293,2]
[373099921,1752859852693,-1395.97,0.00020293,2]
[373099923,1752859852702,-599.52,0.00020293,2]
[373099925,1752859852713,-4107.13,0.00020293,2]
[373099927,1752859852722,-460.0,0.00020293,2]
[373099929,1752859852731,-1227.63,0.00020293,2]
[373099931,1752859852740,-460.0,0.00020293,2]
[373099933,1752859852750,-2655.99,0.00020294,2]
[373099935,1752859852760,-775.59,0.00020294,2]
[373099937,1752859852772,-151.0,0.00020354,2]
[373099939,1752859852781,-151.0,0.00020354,2]
[373099941,1752859852790,-151.0,0.00020354,2]
[373099943,1752859852799,-151.0,0.00020354,2]
[373099945,1752859852809,-2156.0,0.00020409,2]
[373099947,1752859852818,-968.0,0.00020409,2]
[373099949,1752859852827,-407.0,0.00020409,2]
[373099951,1752859852838,-979.0,0.00020464,2]
[373099953,1752859852848,-1626.16,0.00020465,2]
[373099955,1752859852857,-519.29,0.00020465,2]
[373099957,1752859852867,-2793.69,0.00020465,2]
[373099959,1752859852876,-1377.11,0.00020465,2]
[373099961,1752859852886,-925.96,0.00020465,2]
[373099963,1752859852896,-460.0,0.00020465,2]
[373099965,1752859852906,-1676.85,0.00020465,2]
[373099967,1752859852915,-1836.73839674,0.00020486,3]
[373099969,1752859852924,-979.0,0.00020514,2]
[373099971,1752859852934,-979.0,0.00020535,2]
[373099973,1752859852943,-979.0,0.0002054,2]
[373099975,1752859852953,-675.1,0.00020563,2]
[373099977,1752859852962,-460.0,0.00020563,2]
[373099979,1752859852971,-463.46,0.00020564,2]
[373099981,1752859852981,-667.05,0.00020564,2]
[373099983,1752859852991,-1015.39,0.00020564,2]
[373099985,1752859853000,-459.69037382,0.00020565,2]
[373099987,1752859853010,-487.77,0.00020565,2]
[373099989,1752859853019,-493.81,0.00020565,2]
[373099991,1752859853030,-524.61,0.00020565,2]
[373099993,1752859853039,-704.19,0.00020565,2]
[373099995,1752859853049,-459.41,0.00020565,2]
[373099997,1752859853058,-460.0,0.00020565,2]
[373099999,1752859853068,-460.0,0.00020565,2]
[373100000,1752859853080,-764.37,0.00020565,2]
[373100001,1752859853090,-460.0,0.00020567,2]
[373100002,1752859853099,-460.0,0.00020567,2]
[373100003,1752859853109,-1720.96,0.00020567,2]
[373100004,1752859853119,-1395.97,0.00020567,2]
[373100005,1752859853129,-599.52,0.00020567,2]
[373100006,1752859853139,-4107.13,0.00020567,2]
[373100007,1752859853149,-460.0,0.00020567,2]
[373100008,1752859853158,-1227.63,0.00020567,2]
[373100009,1752859853168,-311.93,0.00020567,2]
[373100010,1752859853178,-2655.99,0.00020568,2]
[373100011,1752859853188,-775.59,0.00020568,2]
[373100012,1752859853197,-500.0,0.00020616,2]
[373100013,1752859853207,-288.20497452,0.00020634,2]
[373100014,1752859853218,-979.0,0.00020665,2]
[373100015,1752859853228,-979.0,0.00020678,2]
[373100016,1752859853237,-979.0,0.00020703,2]
[373100017,1752859853247,-1626.16,0.00020739,2]
[373100018,1752859853256,-519.29,0.00020739,2]
[373100019,1752859853266,-2793.69,0.00020739,2]
[373100020,1752859853276,-1377.11,0.00020739,2]
[373100021,1752859853286,-925.96,0.00020739,2]
[373100022,1752859853296,-460.0,0.00020739,2]
[373100023,1752859853306,-1676.85,0.00020739,2]
[373100024,1752859853316,-1836.73839674,0.00020762,3]
[373100025,1752859853326,-979.0,0.00020783,2]
[373100026,1752859853335,-660.0,0.00020834,2]
[373100027,1752859853345,-675.1,0.00020837,2]
[373100028,1752859853355,-460.0,0.00020837,2]
[373100030,1752859853364,-463.46,0.00020838,2]
[373100031,1752859853374,-151.0,0.00020838,2]
[373100033,1752859853383,-151.0,0.00020838,2]
[373100035,1752859853393,-261.556054,0.00020838,2]
[373100037,1752859853402,-261.556054,0.00020838,2]
[373100039,1752859853411,-667.05,0.00020838,2]
[373100041,1752859853421,-1015.39,0.00020838,2]
[373100043,1752859853431,-487.77,0.00020839,2]
[373100045,1752859853441,-493.81,0.00020839,2]
[373100047,1752859853451,-524.61,0.00020839,2]
[373100049,1752859853461,-704.19,0.00020839,2]
[373100051,1752859853471,-606.89349609,0.00020839,2]
[373100053,1752859853480,-460.0,0.00020839,2]
[373100055,1752859853490,-764.37,0.00020839,2]
[373100057,1752859853499,-460.0,0.00020841,2]
[373100059,1752859853508,-460.0,0.00020841,2]
[373100061,1752859853518,-1720.96,0.00020841,2]
[373100063,1752859853532,-1395.97,0.00020841,2]
[373100065,1752859853542,-599.52,0.00020841,2]
[373100067,1752859853551,-4107.13,0.00020841,2]
[373100069,1752859853561,-460.0,0.00020841,2]
[373100071,1752859853570,-1227.63,0.00020841,2]
[373100073,1752859853579,-2655.99,0.00020842,2]
[373100075,1752859853589,-775.59,0.00020842,2]
[373100077,1752859853598,-791.927,0.00020855,2]
[373100079,1752859853607,-151.0,0.00020935,2]
[373100081,1752859853616,-151.0,0.00020935,2]
[373100083,1752859853625,-151.0,0.00020935,2]
[373100085,1752859853634,-151.0,0.00020935,2]
[373100087,1752859853643,-151.0,0.00020935,2]
[373100089,1752859853652,-151.0,0.00020935,2]
[373100091,1752859853661,-151.0,0.00020935,2]
[373100093,1752859853671,-151.0,0.00020935,2]
[373100095,1752859853680,-151.0,0.00020935,2]
[373100097,1752859853689,-151.0,0.00020935,2]
[373100099,1752859853699,-151.0,0.00020935,2]
[373100101,1752859853708,-182.551168,0.00020935,2]
[373100103,1752859853717,-182.551168,0.00020935,2]
[373100105,1752859853726,-151.0,0.00020935,2]
[373100107,1752859853736,-38322.07646554,0.00021,2]
[373100109,1752859853745,-3317.63309398,0.00021,3]
[373100111,1752859853755,-150.999999,0.00021,2]
[373100112,1752859853768,-979.0,0.00021009,2]
[373100115,1752859853782,-1626.16,0.00021013,2]
[373100117,1752859853792,-519.29,0.00021013,2]
[373100119,1752859853802,-2793.69,0.00021013,2]
[373100121,1752859853812,-1377.11,0.00021013,2]
[373100123,1752859853822,-925.96,0.00021013,2]
[373100125,1752859853832,-460.0,0.00021013,2]
[373100127,1752859853842,-1676.85,0.00021013,2]
[373100129,1752859853851,-1836.73839674,0.00021038,4]
[373100130,1752859853861,-500.0,0.00021072,2]
[373100132,1752859853870,-500.0,0.00021072,2]
[373100134,1752859853879,-500.0,0.00021088,2]
[373100136,1752859853889,-500.0,0.00021088,2]
[373100138,1752859853898,-979.0,0.00021102,2]
[373100140,1752859853907,-675.1,0.00021111,2]
[373100142,1752859853916,-460.0,0.00021111,2]
[373100144,1752859853927,-463.46,0.00021112,2]
[373100146,1752859853936,-667.05,0.00021112,2]